[Event "9th Sharjah Cup Women 2018"]
[Site "Sharjah"]
[Date "2018.12.20"]
[Round "9"]
[White "Samaganova, Alexandra"]
[Black "Gevorgyan, Irina"]
[Result "1/2-1/2"]
[ECO "A28"]
[WhiteElo "2038"]
[BlackElo "2301"]
[Annotator "NA"]
[PlyCount "69"]
[EventDate "2018.12.14"]
[EventType "swiss"]
[EventCountry "UAE"]
[SourceTitle "playchess.com"]
[Source "ChessBase"]
[SourceQuality "1"]
[TimeControl "5400+30"]

{[%evp 20,69,8,0,32767,10,8,10,7,0,0,-36,32767,-27,-29,32767,32767,32767,32767,-95,32767,-30,32767,-45,-27,-31,32767,-25,-29,-49,32767,32767,32767,32767,-27,-27,-22,-73,32767,32767,32767,32767,32767,32767,32767,32767,32767,32767,0,-96,0,-86]} 1. c4 {[%emt 0:00:00]} e5 {[%emt 0:00:00]} 2. Nc3 {[%emt 0:00:00]} Nf6 {[%emt 0:00:00]} 3. Nf3 {[%emt 0:00:02]} Nc6 {[%emt 0:00:05]} 4. a3 {[%emt 0:01:17]} g6 {[%emt 0:00:12]} 5. e3 {[%emt 0:00:50]} Bg7 {[%emt 0:00:11] A28: English Opening: Four Knights Variation} 6. Be2 {[%emt 0:00:59]} (6. d3 O-O 7. Be2 d5 8. cxd5 Nxd5 9. Bd2 a5 10. Rc1 Nde7 11. Ne4 h6 12. b4 axb4 13. axb4 {1-0 (74) Artemiev,V (2691)-Le,Q (2737) Huaian 2017}) 6... O-O {[%emt 0:00:33]} 7. Qc2 {[%emt 0:04:07]} Re8 {[%emt 0:06:40]} 8. d3 {[%emt 0:02:25]} d5 {[%emt 0:00:53]} 9. cxd5 {[%emt 0:00:31]} Nxd5 {[%emt 0:00:06]} 10. O-O {[%emt 0:01:09]} a5 {[%emt 0:20:57]} 11. Rb1 {[%emt 0:05:04]} h6 $146 {[%emt 0:12:06]} ({Predecessor:} 11... b6 12. Nxd5 Qxd5 {0-1 (46) Horvath,C (2539)-Acs,P (2529) Balatonlelle 2002}) 12. Bd2 {[%emt 0:08:15]} Nxc3 {[%emt 0:19:24]} 13. bxc3 {[%emt 0:10:21]} a4 {[%emt 0:00:20]} 14. c4 {[%emt 0:01:24]} Qe7 {[%emt 0:01:54]} 15. Bb4 {[%emt 0:03:25]} Nxb4 {[%emt 0:03:56]} 16. Rxb4 {[%emt 0:07:20]} b6 {[%emt 0:01:06]} 17. Nd2 {[%emt 0:11:34]} Bd7 {[%emt 0:00:34]} 18. Ne4 {[%emt 0:04:16]} Bf8 {[%emt 0:06:03]} 19. Qa2 {[%emt 0:09:01]} (19. Bf3 $11) 19... Qd8 {[%emt 0:01:41]} 20. Rbb1 {[%emt 0:00:45]} Bc6 {[%emt 0:10:35]} 21. Nc3 {[%emt 0:05:21]} Bc5 {[%emt 0:01:08]} 22. Rfd1 {[%emt 0:07:53]} Qg5 {[%emt 0:05:14]} 23. Bf1 {[%emt 0:01:20]} Red8 {[%emt 0:00:49]} 24. Rd2 {[%emt 0:05:44]} Qe7 {[%emt 0:01:32]} 25. Ra1 {[%emt 0:01:27]} Kh7 {[%emt 0:00:16]} 26. Ne2 {[%emt 0:01:09]} Qf6 {[%emt 0:04:32]} 27. Qb2 {[%emt 0:01:44]} Kg7 {[%emt 0:01:40]} 28. d4 {[%emt 0:04:03]} exd4 {[%emt 0:00:08]} 29. exd4 {[%emt 0:00:03]} Bd6 {[%emt 0:00:02]} 30. Rad1 {[%emt 0:00:17]} Re8 {[%emt 0:00:10]} 31. Qc3 {[%emt 0:01:27]} h5 {[%emt 0:00:36]} 32. Rd3 $1 {[%emt 0:01:01]} Be4 {[%emt 0:01:24]} ({Better is} 32... Re7 $17 33. f4 Rd8) 33. Re3 {[%emt 0:00:22]} Bc6 {[%emt 0:00:32]} (33... Bb7 $17) 34. Red3 {[%emt 0:00:34]} Be4 $11 {[%emt 0:00:56]} 35. Re3 {[%emt 0:00:04]} 1/2-1/2

[Event "9th Sharjah Cup Women 2018"]
[Site "Sharjah"]
[Date "2018.12.20"]
[Round "9"]
[White "Almaini, Aishah Sarhan"]
[Black "Soyunlu, Narmin"]
[Result "0-1"]
[ECO "E48"]
[WhiteElo "1614"]
[BlackElo "2078"]
[Annotator "NA"]
[PlyCount "74"]
[EventDate "2018.12.14"]
[EventType "swiss"]
[EventCountry "UAE"]
[SourceTitle "playchess.com"]
[Source "ChessBase"]
[SourceQuality "1"]
[TimeControl "5400+30"]

1. d4 {[%emt 0:00:00]} Nf6 {[%emt 0:00:00]} 2. c4 {[%emt 0:00:05]} e6 {[%emt 0:00:00]} 3. Nc3 {[%emt 0:00:11]} Bb4 {[%emt 0:00:00]} 4. e3 {[%emt 0:00:34]} O-O {[%emt 0:00:46]} 5. Bd3 {[%emt 0:00:22]} d5 {[%emt 0:00:17]} 6. Nge2 {[%emt 0:00:37]} Nbd7 {[%emt 0:00:52]} 7. O-O {[%emt 0:00:15]} c6 {[%emt 0:01:10]} 8. a3 {[%emt 0:00:19]} Be7 {[%emt 0:00:05]} 9. Ng3 {[%emt 0:01:46] E48: Nimzo-Indian: Rubinstein: 5 Bd3 d5 including 6 Ne2, but excluding 6 a3} Qc7 $146 {[%emt 0:01:10]} ({Predecessor:} 9... b6 10. e4 dxe4 11. Ngxe4 Bb7 12. Be3 c5 13. Nxf6+ Nxf6 14. Rc1 Rc8 15. dxc5 Bxc5 {0-1 (65) Adnani,M (2388)-Van Wely,L (2654) Rabat 2014}) 10. e4 {[%emt 0:04:46]} dxe4 {[%emt 0:01:26]} 11. Ncxe4 {[%emt 0:02:36]} Nxe4 {[%emt 0:02:14]} 12. Nxe4 {[%emt 0:00:24]} Rd8 {[%emt 0:04:59]} 13. Qh5 {[%emt 0:09:24]} Nf8 {[%emt 0:14:17]} 14. Ng5 {[%emt 0:16:21]} Bxg5 {[%emt 0:03:54]} 15. Bxg5 {[%emt 0:00:12]} Rxd4 {[%emt 0:00:35]} 16. Rad1 {[%emt 0:00:47]} e5 {[%emt 0:08:36]} 17. f4 {[%emt 0:04:58]} (17. Qe2 $15) 17... e4 {[%emt 0:09:37]} 18. Be2 {[%emt 0:01:07]} Rxd1 {[%emt 0:03:36]} 19. Rxd1 {[%emt 0:00:19]} Be6 {[%emt 0:02:56]} 20. f5 {[%emt 0:01:39]} Bxf5 {[%emt 0:04:55]} 21. Be3 {[%emt 0:02:06]} Bg6 {[%emt 0:03:07]} 22. Qg4 $19 {[%emt 0:00:24]} Rd8 {[%emt 0:03:04]} 23. h4 {[%emt 0:00:09]} Rxd1+ {[%emt 0:00:25]} 24. Bxd1 {[%emt 0:00:04]} f5 {[%emt 0:07:54]} 25. Qh3 {[%emt 0:00:37]} f4 {[%emt 0:00:53]} 26. Bc5 {[%emt 0:00:25]} Qe5 {[%emt 0:04:28]} 27. Bxa7 {[%emt 0:00:35]} Qa5 {[%emt 0:00:43]} 28. Bf2 {[%emt 0:00:35]} e3 {[%emt 0:00:14]} 29. Bxe3 {[%emt 0:00:56]} Qe1+ {[%emt 0:00:12]} 30. Kh2 {[%emt 0:00:06]} fxe3 {[%emt 0:00:53]} 31. Bg4 {[%emt 0:00:09]} h5 {[%emt 0:02:23]} 32. Be6+ {[%emt 0:00:15]} Nxe6 {[%emt 0:00:36]} 33. Qxe6+ {[%emt 0:00:06]} Kh7 {[%emt 0:00:02]} 34. Qe7 {[%emt 0:00:22]} e2 {[%emt 0:00:14]} 35. b4 {[%emt 0:00:13]} Qf2 {[%emt 0:00:13]} 36. b5 {[%emt 0:00:08]} e1=Q {[%emt 0:00:08]} 37. bxc6 {[%emt 0:00:16]} Qg3# {[%emt 0:00:06]} 0-1

[Event "9th Sharjah Cup Women 2018"]
[Site "Sharjah"]
[Date "2018.12.20"]
[Round "9"]
[White "Choksi, Khushi"]
[Black "Ovezdurdiyeva, Jemal"]
[Result "0-1"]
[ECO "B23"]
[WhiteElo "1589"]
[BlackElo "2114"]
[Annotator "NA"]
[PlyCount "72"]
[EventDate "2018.12.14"]
[EventType "swiss"]
[EventCountry "UAE"]
[SourceTitle "playchess.com"]
[Source "ChessBase"]
[SourceQuality "1"]
[TimeControl "5400+30"]

1. e4 {[%emt 0:00:00]} c5 {[%emt 0:00:00]} 2. Nc3 {[%emt 0:00:00]} d6 {[%emt 0:00:07]} 3. f4 {[%emt 0:00:00]} e6 {[%emt 0:01:06]} 4. Nf3 {[%emt 0:00:00]} Ne7 {[%emt 0:00:36]} 5. Bb5+ {[%emt 0:00:25]} Nbc6 {[%emt 0:00:11]} 6. O-O {[%emt 0:01:24]} a6 {[%emt 0:00:21]} 7. Bxc6+ {[%emt 0:00:19]} Nxc6 {[%emt 0:00:05]} 8. d3 {[%emt 0:01:31]} Be7 {[%emt 0:03:52] B23: Closed Sicilian: Lines without g3} 9. Kh1 {[%emt 0:06:33]} b5 {[%emt 0:06:53]} 10. Qe1 {[%emt 0:07:54]} O-O {[%emt 0:08:44]} 11. Qg3 {[%emt 0:10:02]} (11. Bd2 Bb7 12. Ne2 f5 13. Ng3 Qd7 14. c3 g6 15. Qe2 Bf6 16. Rae1 {1-0 (32) Salih,A (2320)-Ismael Namir,M (2239) Baghdad 2015}) 11... b4 {[%emt 0:15:16]} 12. Ne2 $146 {[%emt 0:03:15]} ({Predecessor:} 12. Nd1 f5 13. b3 fxe4 14. Bb2 Bf6 15. dxe4 Bxb2 16. Nxb2 {½-½ (27) Bryant,R (2020)-Daugman,J (1992) England 2015}) 12... f5 {[%emt 0:00:54]} 13. e5 {[%emt 0:03:49]} Bb7 {[%emt 0:07:35]} 14. Be3 {[%emt 0:03:55]} Kh8 {[%emt 0:02:09]} 15. d4 {[%emt 0:05:25]} dxe5 {[%emt 0:14:53]} 16. dxe5 {[%emt 0:02:41]} Qd5 {[%emt 0:01:50]} 17. Qf2 {[%emt 0:05:15]} Nd8 {[%emt 0:03:02]} 18. Rfd1 {[%emt 0:06:02]} Qc6 {[%emt 0:01:27]} 19. c3 {[%emt 0:04:30]} bxc3 {[%emt 0:04:47]} 20. Nxc3 {[%emt 0:00:16]} Nf7 {[%emt 0:00:12]} 21. Rac1 {[%emt 0:03:42]} Rad8 {[%emt 0:06:28]} 22. Ne2 {[%emt 0:03:16]} Rxd1+ {[%emt 0:02:51]} 23. Rxd1 {[%emt 0:00:09]} Rd8 {[%emt 0:00:04]} 24. Rxd8+ {[%emt 0:01:31]} Nxd8 {[%emt 0:00:03]} 25. Nc3 {[%emt 0:00:23]} h6 {[%emt 0:01:45]} 26. Kg1 {[%emt 0:06:05]} Nf7 {[%emt 0:00:44]} 27. h4 {[%emt 0:03:18]} Nd8 {[%emt 0:01:51]} 28. Kf1 {[%emt 0:02:28]} Ba8 $11 {[%emt 0:00:20]} 29. b3 {[%emt 0:02:13]} Nb7 {[%emt 0:00:34]} 30. Na4 {[%emt 0:02:23]} c4 {[%emt 0:03:24]} 31. Nb6 {[%emt 0:02:36]} Na5 {[%emt 0:02:15]} 32. Nxa8 {[%emt 0:02:40]} Qxa8 {[%emt 0:00:02]} 33. Nd4 {[%emt 0:02:31]} cxb3 {[%emt 0:04:40]} 34. axb3 {[%emt 0:01:21]} Qe4 {[%emt 0:00:15]} 35. Nxe6 {[%emt 0:03:49]} Nxb3 {[%emt 0:00:57]} 36. g3 {[%emt 0:01:37]} Qc4+ {[%emt 0:00:06]} 0-1

[Event "9th Sharjah Cup Women 2018"]
[Site "Sharjah"]
[Date "2018.12.20"]
[Round "9"]
[White "Al-Hammadi, Maryam Hussein"]
[Black "Boshra, Alshaeby"]
[Result "0-1"]
[ECO "B27"]
[WhiteElo "1354"]
[BlackElo "2019"]
[Annotator "NA"]
[PlyCount "82"]
[EventDate "2018.12.14"]
[EventType "swiss"]
[EventCountry "UAE"]
[SourceTitle "playchess.com"]
[Source "ChessBase"]
[SourceQuality "1"]
[TimeControl "5400+30"]

1. e4 {[%emt 0:00:00]} c5 {[%emt 0:00:00]} 2. Nf3 {[%emt 0:00:15]} g6 {[%emt 0:00:00]} 3. d3 {[%emt 0:00:21]} Bg7 {[%emt 0:00:00]} 4. g3 {[%emt 0:00:48]} Nc6 {[%emt 0:00:00]} 5. Bg2 {[%emt 0:00:36]} d6 {[%emt 0:00:02]} 6. Nbd2 {[%emt 0:00:29]} e5 {[%emt 0:00:27]} 7. c3 {[%emt 0:00:56]} Nge7 {[%emt 0:00:13]} 8. O-O {[%emt 0:01:06]} O-O {[%emt 0:00:05]} 9. a3 {[%emt 0:08:19]} h6 {[%emt 0:00:56] A04: Unusual lines after 1 Nf3 and King's Indian Attack} 10. Ne1 {[%emt 0:03:21]} (10. b4 Be6 11. Bb2 Qd7 12. d4 exd4 13. cxd4 Bg4 14. Qb3 Nxd4 15. Nxd4 cxd4 16. Nf3 Nc6 17. b5 Na5 18. Qb4 Bxf3 19. Bxf3 b6 {½-½ (35) Demidov,M (2521)-Andreikin,D (2708) Sochi 2017}) 10... Be6 {[%emt 0:00:34]} 11. f4 $146 {[%emt 0:11:30]} ({Predecessor:} 11. b4 Qd7 12. Bb2 Rac8 13. Nc2 f5 14. f4 b6 15. b5 Nd8 16. c4 Kh7 17. a4 {1-0 (46) Soloviova,L (2296)-Sgircea,S (2261) Kazan 2013}) 11... Qd7 {[%emt 0:03:00]} 12. Qf3 {[%emt 0:06:47]} b6 {[%emt 0:06:37]} 13. Nc2 {[%emt 0:03:59]} ({White should play} 13. Nc4 $15) 13... d5 {[%emt 0:01:46]} 14. Ne3 {[%emt 0:15:05] [#]} d4 {[%emt 0:20:51]} (14... exf4 $1 $17 15. exd5 Ne5) 15. f5 {[%emt 0:09:27]} dxe3 {[%emt 0:00:51]} 16. fxe6 {[%emt 0:00:08]} Qxe6 {[%emt 0:01:32]} 17. Qxe3 {[%emt 0:00:08]} Rad8 {[%emt 0:01:33]} 18. Nf3 {[%emt 0:00:36]} Qb3 {[%emt 0:02:59]} 19. Qe2 {[%emt 0:01:16]} Qb5 {[%emt 0:05:43]} 20. Rd1 {[%emt 0:00:49]} f5 {[%emt 0:09:22]} 21. Qf1 {[%emt 0:06:05]} Qb3 {[%emt 0:01:50]} 22. Re1 {[%emt 0:05:50]} Qc2 {[%emt 0:02:32]} 23. Rd1 {[%emt 0:06:13]} (23. exf5 $11 {keeps the balance.} Nxf5 24. Qe2 Qxe2 25. Rxe2) 23... fxe4 {[%emt 0:01:03]} 24. Rd2 {[%emt 0:00:24]} Qb3 {[%emt 0:04:30]} 25. dxe4 {[%emt 0:00:09]} Rxd2 {[%emt 0:00:24]} 26. Bxd2 {[%emt 0:00:09]} Qxb2 {[%emt 0:01:29]} 27. Qb1 {[%emt 0:01:00]} Qxb1+ {[%emt 0:00:19]} 28. Rxb1 {[%emt 0:00:04]} Na5 {[%emt 0:00:43]} 29. Rd1 {[%emt 0:03:09]} Rd8 $15 {[%emt 0:00:16]} 30. Bh3 {[%emt 0:01:12]} Rd6 {[%emt 0:00:57]} 31. Rf1 {[%emt 0:01:16]} Nec6 {[%emt 0:02:58]} 32. Bc1 {[%emt 0:01:40]} Nb3 {[%emt 0:00:38]} 33. Bb2 {[%emt 0:01:17]} Nca5 {[%emt 0:00:17]} 34. a4 {[%emt 0:01:01]} Nc4 {[%emt 0:03:13]} 35. Bc1 {[%emt 0:01:42]} Kh7 {[%emt 0:02:18]} 36. Kg2 {[%emt 0:00:49]} Rd3 {[%emt 0:01:46]} 37. Ng1 {[%emt 0:06:17]} Rxc3 {[%emt 0:01:08]} 38. Ne2 {[%emt 0:00:11]} Rc2 {[%emt 0:00:25]} 39. Kf2 {[%emt 0:01:05]} Nd4 {[%emt 0:03:13]} 40. Bg4 {[%emt 0:00:16]} h5 {[%emt 0:00:16]} 41. Bf3 {[%emt 0:00:10]} Nd6 {[%emt 0:02:09]} 0-1